[Event "XIII Figueira da Foz Open 2019"]
[Site "Figueira da Foz"]
[Date "2019.11.01"]
[Round "6.17"]
[White "Dong, Rafael"]
[Black "Barros Gutierrez, Angel Luis"]
[Result "1/2-1/2"]
[ECO "A04"]
[WhiteElo "1486"]
[BlackElo "2038"]
[Annotator "NA"]
[PlyCount "77"]
[EventDate "2019.10.27"]
[EventType "swiss"]
[EventCountry "POR"]
[SourceTitle "playchess.com"]
[Source "ChessBase"]
[SourceQuality "1"]
[TimeControl "40/5400+30:1800+30"]

{[%evp 8,45,23,30,22,15,27,17,30,37,88,52,69,64,77,64,135,73,200,32767,264,251,237,245,268,281,268,261,262,274,259,191,225,255,289,229,195,211,230,231]} 1. Nf3 {[%emt 0:00:00]} c5 {[%emt 0:00:00]} 2. c4 {[%emt 0:00:00]} Nc6 {[%emt 0:00:03]} 3. g3 {[%emt 0:00:00]} e6 {[%emt 0:00:31]} 4. Bg2 {[%emt 0:01:05]} d5 {[%emt 0:00:25]} 5. cxd5 {[%emt 0:00:52]} exd5 {[%emt 0:00:17]} 6. O-O {[%emt 0:00:29]} Nf6 {[%emt 0:00:18]} 7. d4 {[%emt 0:00:09]} c4 {[%emt 0:01:05]} 8. Nc3 {[%emt 0:00:21]} a6 {[%emt 0:01:27] D30: Queen's Gambit Declined: Systems without Nc3} (8... Be7 $11 {keeps the balance.} 9. Ne5 O-O 10. Bg5 Be6 11. Nxc6 bxc6 12. b3 cxb3 13. axb3 h6 14. Bxf6 Bxf6 15. Na4 Bg4 16. Qd3 a5 17. Rfc1 Qe7 18. e3 Qb7 19. Nc5 Qb4 20. h3 Bc8 21. Ra4 {1-0 (43) Filip,L (2438)-Osmanodja,F (2326) Skopje 2019}) 9. Bg5 {[%emt 0:02:17]} Be7 $1 {[%emt 0:00:35]} 10. e3 {[%emt 0:00:15]} Bg4 $146 {[%emt 0:02:30]} ({Predecessor:} 10... h6 11. Bxf6 Bxf6 12. Nd2 Be6 13. b3 b5 14. bxc4 dxc4 15. Bxc6+ Bd7 16. Bxa8 Qxa8 {1-0 (30) Oelrichs,M (1646)-Haaker,M (1200) Pinneberg 2008}) 11. h3 {[%emt 0:02:43]} Bh5 {[%emt 0:00:21]} (11... Be6 $14) 12. Qd2 {[%emt 0:01:58]} (12. g4 $142 Bg6 13. Ne5) 12... b5 {[%emt 0:00:50]} (12... Ng8 $14) 13. Ne5 {[%emt 0:01:10]} Rc8 $2 {[%emt 0:04:37]} (13... Nxe5 $16 14. dxe5 Ne4 15. Qxd5 Qxd5 16. Nxd5 Nxg5) 14. Nxc6 {[%emt 0:06:53]} Rxc6 {[%emt 0:00:12]} 15. Bxf6 {[%emt 0:00:13]} Bxf6 {[%emt 0:03:36]} 16. Nxd5 {[%emt 0:00:18]} Rd6 {[%emt 0:01:11]} 17. Nf4 {[%emt 0:01:00]} Bg6 {[%emt 0:01:05]} 18. a4 {[%emt 0:06:08]} O-O {[%emt 0:01:17]} 19. Nxg6 {[%emt 0:01:10]} fxg6 {[%emt 0:00:36]} 20. axb5 {[%emt 0:01:42]} axb5 {[%emt 0:00:36]} 21. Ra5 {[%emt 0:03:40]} Rb6 {[%emt 0:02:47]} 22. Rfa1 {[%emt 0:01:03]} Qd6 {[%emt 0:00:55]} 23. Qc2 $18 {[%emt 0:12:38]} Qb4 {[%emt 0:03:52]} 24. Ra8 {[%emt 0:02:42]} Rfb8 {[%emt 0:03:10]} 25. Rxb8+ {[%emt 0:01:53]} Rxb8 {[%emt 0:00:11]} 26. Bd5+ {[%emt 0:00:55]} Kf8 {[%emt 0:02:33]} 27. Ra7 {[%emt 0:03:58]} Be7 {[%emt 0:00:58]} 28. Qe4 {[%emt 0:00:58]} Qd6 {[%emt 0:01:25]} 29. Qf3+ {[%emt 0:02:41]} Qf6 {[%emt 0:00:55]} 30. Qxf6+ {[%emt 0:11:01]} gxf6 {[%emt 0:00:24]} 31. Kf1 {[%emt 0:00:39]} Rd8 {[%emt 0:02:54]} 32. Be4 {[%emt 0:03:19]} Rb8 {[%emt 0:02:10]} 33. d5 {[%emt 0:02:55]} f5 {[%emt 0:01:07]} 34. Bf3 {[%emt 0:02:06]} Bf6 {[%emt 0:03:42]} 35. d6 {[%emt 0:11:24]} Bxb2 {[%emt 0:01:22]} 36. Bd5 {[%emt 0:01:21]} Rd8 {[%emt 0:02:40]} 37. Rf7+ {[%emt 0:00:17]} Ke8 {[%emt 0:02:58]} 38. Re7+ {[%emt 0:01:01]} Kf8 {[%emt 0:00:24]} 39. Rf7+ {[%emt 0:00:22]} 1/2-1/2

[Event "XIII Figueira da Foz Open 2019"]
[Site "Figueira da Foz"]
[Date "2019.11.01"]
[Round "6.18"]
[White "Moes Joaquim, Carlos"]
[Black "Junior, Aguinaldo Vera Cruz"]
[Result "1-0"]
[ECO "D15"]
[WhiteElo "1400"]
[BlackElo "1558"]
[Annotator "NA"]
[PlyCount "110"]
[EventDate "2019.10.27"]
[EventType "swiss"]
[EventCountry "POR"]
[SourceTitle "playchess.com"]
[Source "ChessBase"]
[SourceQuality "1"]
[TimeControl "40/5400+30:1800+30"]

1. d4 {[%emt 0:00:00]} d5 {[%emt 0:00:00]} 2. c4 {[%emt 0:00:00]} c6 {[%emt 0:00:00]} 3. Nc3 {[%emt 0:00:00]} Nf6 {[%emt 0:00:23]} 4. Nf3 {[%emt 0:00:37]} Bg4 {[%emt 0:02:22]} 5. e3 {[%emt 0:00:24]} e6 {[%emt 0:00:41]} 6. Be2 {[%emt 0:00:31]} Bxf3 {[%emt 0:01:06]} 7. Bxf3 {[%emt 0:00:30]} dxc4 {[%emt 0:00:12]} 8. Qa4 {[%emt 0:01:06]} Nd5 {[%emt 0:02:04]} 9. Qxc4 {[%emt 0:00:48]} Nxc3 {[%emt 0:00:47]} 10. bxc3 {[%emt 0:00:18]} Qa5 {[%emt 0:01:15]} 11. O-O {[%emt 0:00:52]} Bd6 {[%emt 0:03:52]} 12. e4 {[%emt 0:01:49]} O-O {[%emt 0:00:39]} 13. e5 {[%emt 0:00:13]} Be7 {[%emt 0:00:45]} 14. Bd2 {[%emt 0:03:22]} Nd7 {[%emt 0:00:38]} 15. Qd3 {[%emt 0:01:28]} Rab8 {[%emt 0:01:19]} 16. Bd1 {[%emt 0:00:11]} Qd8 {[%emt 0:02:11]} 17. f4 {[%emt 0:01:23]} c5 {[%emt 0:00:51]} 18. Bc2 {[%emt 0:00:14]} f5 {[%emt 0:01:02]} 19. Bb3 {[%emt 0:00:28]} Qb6 {[%emt 0:01:09]} 20. Kh1 {[%emt 0:02:45]} cxd4 {[%emt 0:03:17]} 21. cxd4 {[%emt 0:00:18]} Rbd8 {[%emt 0:01:47]} 22. Qc4 {[%emt 0:03:36]} Nb8 {[%emt 0:04:11]} 23. Be3 Rd5 {[%emt 0:07:50]} 24. Rad1 {[%emt 0:03:21]} Nc6 25. Qc3 {[%emt 0:09:19]} Bb4 {[%emt 0:03:50]} 26. Qb2 {[%emt 0:00:59]} Rdd8 27. Bxe6+ {[%emt 0:02:31]} Kh8 {[%emt 0:01:26]} 28. Bb3 {[%emt 0:01:24]} Na5 {[%emt 0:00:52]} 29. Rd3 {[%emt 0:01:22]} Qa6 {[%emt 0:01:12]} 30. Bc2 {[%emt 0:01:34]} Be7 {[%emt 0:02:12]} 31. Bg1 {[%emt 0:04:20]} Nc4 32. Qa1 {[%emt 0:02:11]} Rc8 {[%emt 0:01:13]} 33. Rfd1 {[%emt 0:00:35]} Ba3 34. Rb3 {[%emt 0:01:47]} Nxe5 {[%emt 0:04:56]} 35. Qb1 {[%emt 0:07:18]} Ng6 {[%emt 0:02:33]} 36. Bxf5 {[%emt 0:00:15]} Rc7 {[%emt 0:02:32]} 37. Bd3 {[%emt 0:01:04]} Qd6 38. f5 {[%emt 0:02:08]} Nf4 {[%emt 0:02:27]} 39. Be4 {[%emt 0:01:09]} b6 {[%emt 0:00:58]} 40. Bf2 {[%emt 0:00:00]} Ne2 {[%emt 0:00:00]} 41. Bg3 {[%emt 0:07:35]} Nxg3+ {[%emt 0:02:01]} 42. Rxg3 {[%emt 0:00:10]} Rfc8 {[%emt 0:00:23]} 43. Rgd3 {[%emt 0:02:08]} Rc3 {[%emt 0:02:18]} 44. g3 {[%emt 0:02:19]} Qh6 {[%emt 0:01:58]} 45. Qb5 {[%emt 0:03:09]} Rc2 {[%emt 0:03:14]} 46. Bg2 {[%emt 0:02:02]} Bd6 {[%emt 0:00:53]} 47. h3 {[%emt 0:00:12]} Bxg3 {[%emt 0:02:09]} 48. Rxg3 {[%emt 0:01:53]} Rc1 {[%emt 0:00:05]} 49. Rg1 {[%emt 0:00:42]} Rxg1+ {[%emt 0:01:51]} 50. Kxg1 {[%emt 0:00:00]} Qf4 {[%emt 0:01:49]} 51. Qe5 {[%emt 0:06:30]} Qh6 {[%emt 0:04:10]} 52. d5 {[%emt 0:03:21]} Rf8 {[%emt 0:00:47]} 53. d6 {[%emt 0:00:34]} Qc1+ {[%emt 0:00:53]} 54. Kh2 {[%emt 0:00:13]} Rg8 {[%emt 0:00:34]} 55. Bd5 {[%emt 0:00:23]} Qb2+ {[%emt 0:01:05] Qe4} 1-0

[Event "XIII Figueira da Foz Open 2019"]
[Site "Figueira da Foz"]
[Date "2019.11.01"]
[Round "7.1"]
[White "Klekowski, Maciej"]
[Black "Clarke, Brandon G I"]
[Result "*"]
[ECO "E62"]
[WhiteElo "2481"]
[BlackElo "2445"]
[Annotator "RC"]
[PlyCount "32"]
[EventDate "2019.10.27"]
[EventType "swiss"]
[EventCountry "POR"]
[SourceTitle "playchess.com"]
[Source "ChessBase"]
[SourceQuality "1"]
[TimeControl "40/5400+30:1800+30"]

1. c4 {[%emt 0:00:00]} Nf6 {[%emt 0:02:45]} 2. Nc3 {[%emt 0:00:00]} g6 {[%emt 0:00:30]} 3. d4 {[%emt 0:00:10]} Bg7 {[%emt 0:00:30]} 4. g3 {[%emt 0:00:30]} O-O {[%emt 0:00:30]} 5. Bg2 {[%emt 0:00:30]} d6 {[%emt 0:00:15]} 6. Nf3 {[%emt 0:00:00]} Nc6 {[%emt 0:00:25]} 7. O-O e5 {[%emt 0:00:03]} 8. d5 {[%emt 0:00:51]} Nb8 {[%emt 0:07:39]} 9. c5 Na6 {[%emt 0:00:03]} 10. cxd6 {[%emt 0:01:16]} cxd6 {[%emt 0:00:30]} 11. Nd2 Nd7 {[%emt 0:00:35]} 12. Nb5 {[%emt 0:12:59]} Nf6 13. e4 {[%emt 0:01:52]} Ne8 {[%emt 0:00:38]} 14. Nc4 f5 {[%emt 0:07:01]} 15. Be3 {[%emt 0:08:59]} b6 {[%emt 0:00:30]} 16. f3 {[%emt 0:00:30]} Nac7 {[%emt 0:00:30]} *

[Event "XIII Figueira da Foz Open 2019"]
[Site "Figueira da Foz"]
[Date "2019.11.01"]
[Round "7.7"]
[White "Gomez Dieguez, David"]
[Black "Martin Duque, Jesus"]
[Result "*"]
[ECO "B47"]
[WhiteElo "2336"]
[BlackElo "2445"]
[Annotator "RC"]
[PlyCount "22"]
[EventDate "2019.10.27"]
[EventType "swiss"]
[EventCountry "POR"]
[SourceTitle "playchess.com"]
[Source "ChessBase"]
[SourceQuality "1"]
[TimeControl "40/5400+30:1800+30"]

1. e4 c5 2. Nc3 Nc6 3. Nge2 e6 4. d4 cxd4 5. Nxd4 Qc7 6. g3 a6 7. Bg2 Nge7 {[%emt 0:01:03]} 8. O-O {[%emt 0:12:24]} Nxd4 {[%emt 0:00:30]} 9. Qxd4 {[%emt 0:00:30]} Nc6 {[%emt 0:00:30]} 10. Qd1 {[%emt 0:00:30]} Be7 {[%emt 0:00:30]} 11. f4 {[%emt 0:00:30]} d6 {[%emt 0:00:30]} *

[Event "XIII Figueira da Foz Open 2019"]
[Site "Figueira da Foz"]
[Date "2019.11.01"]
[Round "7.12"]
[White "Adams, Philip"]
[Black "Guerreiro, Nuno"]
[Result "0-1"]
[ECO "B00"]
[WhiteElo "1993"]
[BlackElo "2069"]
[Annotator "NA RC"]
[PlyCount "86"]
[EventDate "2019.10.27"]
[EventType "swiss"]
[EventCountry "POR"]
[SourceTitle "playchess.com"]
[Source "ChessBase"]
[SourceQuality "1"]
[TimeControl "40/5400+30:1800+30"]

1. e4 {[%emt 0:00:00]} Nc6 {[%emt 0:01:20]} 2. Nf3 {[%emt 0:00:00]} g6 {[%emt 0:00:18]} 3. d4 {[%emt 0:00:14]} Bg7 {[%emt 0:00:08]} 4. d5 Nb8 {[%emt 0:00:09]} 5. Bc4 {[%emt 0:02:45]} d6 {[%emt 0:00:10]} 6. h3 {[%emt 0:00:38]} Nf6 {[%emt 0:00:17]} 7. Nc3 {[%emt 0:00:29]} O-O {[%emt 0:00:10]} 8. O-O {[%emt 0:00:13]} c6 {[%emt 0:00:28]} 9. a4 {[%emt 0:00:33]} Nbd7 {[%emt 0:01:21] B08: Pirc Defence: Classical System} 10. a5 $146 {[%emt 0:02:38]} ({Predecessor:} 10. Re1 Qc7 11. Ba2 Nc5 12. Bf4 Qb6 13. e5 Qxb2 14. Qd2 Nfe4 15. Nxe4 Nxe4 16. Qe3 dxe5 17. Bxe5 Bxe5 18. Nxe5 Qxe5 19. Qxe4 Qxe4 20. Rxe4 {0-1 (50) Huschenbeth,N (2596)-Moussard,J (2567) Bastia 2017}) 10... b5 {[%emt 0:03:01]} 11. axb6 {[%emt 0:01:18]} Nxb6 {[%emt 0:00:11]} 12. Bb3 {[%emt 0:03:45]} c5 {[%emt 0:04:12]} 13. Re1 {[%emt 0:04:26]} Nfd7 {[%emt 0:06:21]} 14. Bf4 {[%emt 0:20:12]} Bxc3 {[%emt 0:07:07]} 15. bxc3 {[%emt 0:00:06]} f6 {[%emt 0:00:07]} 16. Bh6 {[%emt 0:03:16]} Re8 {[%emt 0:01:42]} 17. Ba4 {[%emt 0:18:58]} Nxa4 {[%emt 0:00:54]} 18. Rxa4 {[%emt 0:00:01]} Nb6 {[%emt 0:00:53]} 19. Ra2 {[%emt 0:01:18]} a5 {[%emt 0:01:23]} 20. Qd2 {[%emt 0:00:59]} a4 {[%emt 0:01:40]} 21. Qf4 {[%emt 0:06:23]} e5 {[%emt 0:04:09]} 22. Qg3 {[%emt 0:00:32]} Kh8 {[%emt 0:04:27]} 23. h4 {[%emt 0:02:31]} Qd7 {[%emt 0:02:02]} 24. Nh2 {[%emt 0:07:02]} f5 {[%emt 0:12:32]} 25. f4 {[%emt 0:03:29]} fxe4 {[%emt 0:01:55]} 26. fxe5 {[%emt 0:03:17]} dxe5 {[%emt 0:04:26]} 27. Rd1 {[%emt 0:05:40]} (27. c4 $5) 27... Nc4 {[%emt 0:01:10]} 28. d6 $2 {[%emt 0:02:36]} (28. Rda1 $11) 28... Nxd6 {[%emt 0:03:13]} 29. Qg5 {[%emt 0:01:26]} Qd8 {[%emt 0:03:39]} 30. Qg3 {[%emt 0:03:22]} Qe7 {[%emt 0:00:56]} 31. Bg5 {[%emt 0:01:01]} Nf5 {[%emt 0:04:18]} 32. Qe1 {[%emt 0:00:44]} Qf7 {[%emt 0:02:31]} 33. Raa1 {[%emt 0:02:30]} h6 {[%emt 0:00:56]} 34. Bc1 {[%emt 0:00:27]} Kh7 {[%emt 0:08:09]} 35. g4 {[%emt 0:01:16]} (35. Ng4 $17) 35... Bb7 {[%emt 0:04:26]} 36. gxf5 {[%emt 0:00:38]} gxf5 {[%emt 0:00:10]} 37. Rd6 {[%emt 0:02:34]} Rg8+ {[%emt 0:00:51]} 38. Kf2 {[%emt 0:00:35]} f4 {[%emt 0:00:41]} 39. Qd1 {[%emt 0:00:56]} e3+ {[%emt 0:00:20]} 40. Kf1 {[%emt 0:00:00]} Bc8 {[%emt 0:00:00]} (40... Qf5 $142 41. Ng4 Rxg4) 41. Qf3 {[%emt 0:18:43]} Qc4+ {[%emt 0:11:05] Double Attack} 42. Rd3 {[%emt 0:02:18]} e4 {[%emt 0:00:53]} 43. Qxf4 {[%emt 0:01:29]} Bh3+ {[%emt 0:00:55]} 0-1

[Event "XIII Figueira da Foz Open 2019"]
[Site "Figueira da Foz"]
[Date "2019.11.01"]
[Round "7.13"]
[White "Dong, Fabio"]
[Black "Tadevosyan, Aspet"]
[Result "*"]
[ECO "D31"]
[WhiteElo "1410"]
[BlackElo "1998"]
[Annotator "NA RC"]
[PlyCount "32"]
[EventDate "2019.10.27"]
[EventType "swiss"]
[EventCountry "POR"]
[SourceTitle "playchess.com"]
[Source "ChessBase"]
[SourceQuality "1"]
[TimeControl "40/5400+30:1800+30"]

1. c4 e6 {[%emt 0:00:32]} 2. Nc3 {[%emt 0:00:00]} d5 {[%emt 0:00:00]} 3. d4 {[%emt 0:00:00]} Be7 {[%emt 0:00:00]} 4. cxd5 {[%emt 0:00:31]} exd5 {[%emt 0:06:07]} 5. Qc2 {[%emt 0:05:22]} Bf6 {[%emt 0:02:10]} 6. e3 {[%emt 0:02:26]} Ne7 {[%emt 0:01:15]} 7. Nf3 {[%emt 0:00:30]} Nbc6 {[%emt 0:02:08]} 8. a3 {[%emt 0:00:51]} Bf5 {[%emt 0:00:30]} 9. Bd3 {[%emt 0:02:55]} g6 {[%emt 0:01:20]} 10. O-O {[%emt 0:01:28]} O-O {[%emt 0:01:00]} 11. Bd2 {[%emt 0:00:30]} Bxd3 {[%emt 0:00:30]} 12. Qxd3 {[%emt 0:00:30]} Bg7 {[%emt 0:00:30]} 13. Rfe1 {[%emt 0:00:30]} a6 {[%emt 0:00:30]} 14. Rac1 {[%emt 0:00:30]} Na5 {[%emt 0:00:30]} 15. Qc2 {[%emt 0:00:30]} Nc4 {[%emt 0:00:30]} 16. Na2 {[%emt 0:00:30]} Rc8 {[%emt 0:00:30]} *

[Event "XIII Figueira da Foz Open 2019"]
[Site "Figueira da Foz"]
[Date "2019.11.01"]
[Round "7.13"]
[White "Dong, Fabio"]
[Black "Tadevosyan, Aspet"]
[Result "0-1"]
[ECO "D31"]
[WhiteElo "1410"]
[BlackElo "1998"]
[Annotator "NA RC"]
[PlyCount "82"]
[EventDate "2019.10.27"]
[EventType "swiss"]
[EventCountry "POR"]
[SourceTitle "playchess.com"]
[Source "ChessBase"]
[SourceQuality "1"]
[TimeControl "40/5400+30:1800+30"]

1. c4 e6 {[%emt 0:00:32]} 2. Nc3 {[%emt 0:00:00]} d5 {[%emt 0:00:00]} 3. d4 {[%emt 0:00:00]} Be7 {[%emt 0:00:00]} 4. cxd5 {[%emt 0:00:31]} exd5 {[%emt 0:06:07]} 5. Qc2 {[%emt 0:05:22]} Bf6 {[%emt 0:02:10]} 6. e3 {[%emt 0:02:26]} Ne7 {[%emt 0:01:15]} 7. Nf3 {[%emt 0:00:30]} Nbc6 {[%emt 0:02:08]} 8. a3 {[%emt 0:00:51]} Bf5 {[%emt 0:00:30]} 9. Bd3 {[%emt 0:02:55]} g6 {[%emt 0:01:20]} 10. O-O {[%emt 0:01:28]} O-O {[%emt 0:01:00]} 11. h3 {[%emt 0:00:30]} Re8 12. Bd2 {[%emt 0:08:45]} Bxd3 {[%emt 0:03:41]} 13. Qxd3 {[%emt 0:03:53]} Bg7 {[%emt 0:01:03]} 14. Rfe1 a6 {[%emt 0:03:51]} 15. Rac1 {[%emt 0:02:39]} Na5 {[%emt 0:00:31]} 16. Qc2 {[%emt 0:11:49]} Nc4 17. Na2 {[%emt 0:06:58]} Rc8 {[%emt 0:03:17]} 18. Bb4 $15 {[%emt 0:04:11]} Nc6 {[%emt 0:05:24]} 19. Nd2 {[%emt 0:03:15]} a5 {[%emt 0:02:35]} 20. Nxc4 axb4 21. Nd2 {[%emt 0:01:30]} bxa3 {[%emt 0:00:40]} 22. bxa3 {[%emt 0:00:43]} Qd6 {[%emt 0:09:12]} 23. Qb3 {[%emt 0:01:59]} b6 {[%emt 0:01:35]} 24. Nb4 {[%emt 0:02:59]} Ne7 {[%emt 0:01:16]} 25. Rc2 c5 {[%emt 0:00:18]} 26. dxc5 {[%emt 0:02:30]} bxc5 {[%emt 0:00:39]} 27. Na2 {[%emt 0:11:25]} Rb8 {[%emt 0:01:45]} 28. Qd3 {[%emt 0:01:47]} Red8 {[%emt 0:01:10]} 29. e4 {[%emt 0:00:59]} c4 30. Qe2 {[%emt 0:01:21]} c3 {[%emt 0:06:14]} 31. Nf3 d4 {[%emt 0:00:27]} 32. Qd3 {[%emt 0:02:06]} Qxa3 {[%emt 0:00:15]} 33. Rd1 Nc6 {[%emt 0:03:12]} 34. Qc4 {[%emt 0:05:15]} Rbc8 {[%emt 0:00:10]} 35. Qd3 {[%emt 0:03:46]} Qb3 {[%emt 0:01:13]} 36. Nc1 {[%emt 0:00:40]} Qe6 {[%emt 0:00:10]} 37. Ne2 {[%emt 0:02:04]} Nb4 {[%emt 0:02:19]} 38. Nexd4 Nxd3 {[%emt 0:00:03]} 39. Nxe6 {[%emt 0:02:37]} fxe6 {[%emt 0:00:00]} 40. Ng5 {[%emt 0:00:00]} Nb4 {[%emt 0:00:00]} 41. Rxd8+ {[%emt 0:02:24]} Rxd8 0-1

[Event "XIII Figueira da Foz Open 2019"]
[Site "Figueira da Foz"]
[Date "2019.11.01"]
[Round "7.16"]
[White "Soares, Luis Francisco Almei"]
[Black "Puglia, Francesco"]
[Result "0-1"]
[ECO "B02"]
[WhiteElo "2024"]
[BlackElo "1916"]
[Annotator "NA RC"]
[PlyCount "84"]
[EventDate "2019.10.27"]
[EventType "swiss"]
[EventCountry "POR"]
[SourceTitle "playchess.com"]
[Source "ChessBase"]
[SourceQuality "1"]
[TimeControl "40/5400+30:1800+30"]

1. e4 {[%emt 0:00:00]} Nf6 {[%emt 0:02:39]} 2. e5 {[%emt 0:00:21]} Ng8 {[%emt 0:00:06]} 3. d4 {[%emt 0:00:36]} d5 {[%emt 0:00:02]} 4. Nf3 {[%emt 0:01:23]} c5 {[%emt 0:00:28]} 5. c3 {[%emt 0:01:01]} Nc6 {[%emt 0:00:24]} 6. Bb5 {[%emt 0:02:28]} Bg4 {[%emt 0:03:38]} 7. Bxc6+ {[%emt 0:04:03]} bxc6 {[%emt 0:00:04]} 8. dxc5 {[%emt 0:00:26]} Qc7 {[%emt 0:08:25]} 9. Bf4 {[%emt 0:01:12]} a5 {[%emt 0:05:37]} 10. O-O {[%emt 0:03:07]} e6 {[%emt 0:03:30]} 11. b4 {[%emt 0:02:21]} axb4 {[%emt 0:00:30]} 12. cxb4 {[%emt 0:00:14]} g5 {[%emt 0:00:34]} 13. Bg3 {[%emt 0:03:37]} h5 {[%emt 0:01:09]} 14. h3 {[%emt 0:00:55]} Bxf3 {[%emt 0:01:01]} 15. Qxf3 {[%emt 0:00:28]} g4 {[%emt 0:00:14]} 16. hxg4 {[%emt 0:01:14]} hxg4 {[%emt 0:00:02]} 17. Qxg4 {[%emt 0:03:28]} Nh6 {[%emt 0:00:14]} 18. Qe2 {[%emt 0:04:56]} Nf5 {[%emt 0:02:14]} 19. Nd2 {[%emt 0:00:38]} f6 {[%emt 0:03:31]} 20. exf6 {[%emt 0:02:36]} Qh7 {[%emt 0:00:53]} 21. Qxe6+ {[%emt 0:03:11]} Kd8 {[%emt 0:00:18]} 22. f3 {[%emt 0:01:51]} Bh6 {[%emt 0:16:44]} 23. f4 {[%emt 0:08:51]} Nxg3 {[%emt 0:10:56]} 24. Qd6+ {[%emt 0:03:34]} Qd7 {[%emt 0:01:30]} 25. Qxd7+ {[%emt 0:00:43]} Kxd7 {[%emt 0:00:01]} 26. Rf3 {[%emt 0:02:20]} Nh5 {[%emt 0:00:36]} 27. g3 {[%emt 0:01:17]} Nxf6 {[%emt 0:00:16]} 28. Rd3 {[%emt 0:02:37]} Bg7 {[%emt 0:05:12]} 29. Nc4 {[%emt 0:07:59]} Ke6 {[%emt 0:09:17]} 30. Nb6 {[%emt 0:02:46]} (30. Nd6 $17) 30... Rad8 {[%emt 0:01:01]} ({Black should try} 30... Ne4 $19 31. Nxa8 Bxa1) 31. a4 {[%emt 0:02:31]} (31. Re1+ $15 Ne4 32. Kg2) 31... Ne4 {[%emt 0:01:38]} 32. Ra2 $2 {[%emt 0:01:25]} (32. Re1 {was the only chance.}) 32... Kf5 {[%emt 0:02:20]} 33. a5 {[%emt 0:01:55] [#]} Bc3 $15 {[%emt 0:02:20]} (33... Nc3 $1 $19 {[%cal Rc3a2]} 34. Rc2 Ke4) 34. Ra4 {[%emt 0:04:59]} Rh7 {[%emt 0:00:29]} 35. Kg2 {[%emt 0:01:58]} Rdh8 {[%emt 0:01:32]} 36. a6 {[%emt 0:04:35]} Kg4 {[%emt 0:01:29]} 37. Rd1 {[%emt 0:04:19]} Rh2+ {[%emt 0:04:12]} 38. Kf1 {[%emt 0:00:19]} Rf2+ {[%emt 0:00:57]} 39. Kg1 {[%emt 0:00:28]} Rhh2 {[%emt 0:00:11]} 40. Rd3 {[%emt 0:00:00]} Rhg2+ {[%emt 0:00:00]} 41. Kh1 {[%emt 0:03:17]} Nxg3+ {[%emt 0:02:09]} 42. Rxg3+ {[%emt 0:00:04]} Kxg3 {[%emt 0:00:10]} 0-1

[Event "XIII Figueira da Foz Open 2019"]
[Site "Figueira da Foz"]
[Date "2019.11.01"]
[Round "7.17"]
[White "Barrento, Jorge Maria Lopes"]
[Black "Gama, Joao Goncalo Cerejei"]
[Result "0-1"]
[ECO "A45"]
[WhiteElo "1739"]
[BlackElo "1712"]
[Annotator "NA RC"]
[PlyCount "45"]
[EventDate "2019.10.27"]
[EventType "swiss"]
[EventCountry "POR"]
[SourceTitle "playchess.com"]
[Source "ChessBase"]
[SourceQuality "1"]
[TimeControl "40/5400+30:1800+30"]

1. d4 {[%emt 0:05:58]} Nf6 2. Nc3 {[%emt 0:00:09]} d5 {[%emt 0:00:00]} 3. Bf4 {[%emt 0:00:01]} Bf5 {[%emt 0:00:00]} 4. e3 {[%emt 0:00:18]} e6 {[%emt 0:00:02]} 5. Nb5 {[%emt 0:00:53]} Na6 {[%emt 0:00:14]} 6. a4 {[%emt 0:00:02]} c6 {[%emt 0:01:49]} 7. Na3 {[%emt 0:02:11]} Qb6 {[%emt 0:08:57]} 8. Bd3 {[%emt 0:08:57]} Qxb2 {[%emt 0:15:08]} 9. e4 {[%emt 0:06:40]} Bb4+ {[%emt 0:05:58]} 10. Kf1 {[%emt 0:02:38]} Bxe4 {[%emt 0:06:49]} 11. Bxe4 {[%emt 0:06:45]} Nxe4 {[%emt 0:00:47]} 12. Qc1 {[%emt 0:00:32]} Qxd4 {[%emt 0:08:18]} 13. Be3 {[%emt 0:00:31]} Qf6 {[%emt 0:01:25]} 14. Nf3 {[%emt 0:07:35]} Bc5 {[%emt 0:07:55]} 15. Rb1 {[%emt 0:06:33]} Bxe3 {[%emt 0:01:00]} 16. Qxe3 {[%emt 0:01:37]} Nac5 {[%emt 0:00:39]} 17. Nd2 {[%emt 0:02:23]} Nxd2+ {[%emt 0:04:10]} 18. Qxd2 {[%emt 0:00:02]} O-O {[%emt 0:00:16]} 19. Qb4 {[%emt 0:04:08]} Qe7 {[%emt 0:04:12]} 20. h4 {[%emt 0:01:38]} a5 {[%emt 0:01:30]} 21. Qg4 {[%emt 0:04:01]} Ne4 {[%emt 0:00:59]} 22. Ra1 {[%emt 0:01:42]} Qf6 {[%emt 0:00:29]} 23. Nb1 0-1